Cogmind - Beta 14 @@@ ROGUE MODE // 2024.08.07 @ 14:24:55 Player: Heclapar Result: Destroyed by P2-D72(R) with Subdweller Beam Cannon Performance ------------- Evolutions (0) 0 Regions Visited (3) 600 Robots Destroyed (23) 115 Value Destroyed (878) 878 Prototype IDs (5) 100 Alien Tech Used (0) 0 Bonus (-1246) -1246 TOTAL SCORE: 447 Bonus ------- Follower Combat Kills 50 Friendly Fire -1296 Cogmind --------- Core Integrity 0/250 Matter 300/300 Energy 320/320 System Corruption 0% Temperature Cool (9) Movement Rolling (107) Ox1 Location -10/Subcaves Parts ------- > --- POWER (1+1) ------ Ion Engine (+) Makeshift Power Source > --- PROPULSION (2+1) - Makeshift Leg Wheel (+) Subdweller Monowheel > --- UTILITY (2+1) ---- Scrap Shield (+) Rainbow Chip > --- WEAPON (2+1) ----- Subdweller Laser Light Assault Rifle (+) Battle Cannon > --- INVENTORY (5) ---- Large Storage Unit YI-UF0's Bottomless Matter Pit (336) Subdweller Machine Gun Subdweller Shrapnel Launcher Scrap Shield Fragment (46) Peak State ------------ > --- POWER ------------ Ion Engine Makeshift Power Source > --- PROPULSION ------- Makeshift Leg Wheel Subdweller Monowheel > --- UTILITY ---------- Scrap Shield Rainbow Chip > --- WEAPON ----------- Subdweller Laser Light Assault Rifle Battle Cannon > --- INVENTORY -------- Large Storage Unit YI-UF0's Bottomless Matter Pit Subdweller Machine Gun Subdweller Shrapnel Launcher Scrap Shield Fragment [Rating: 35] Favorites ----------- Power Ion Engine Engine Ion Engine Propulsion Aluminum Leg Treads Light Treads Leg Aluminum Leg Wheel Wheel Utility Large Storage Unit Device Thief Drone Bay Storage Large Storage Unit Processor Rainbow Chip Protection Scrap Shield Weapon Light Assault Rifle Energy Gun Subdweller Laser Ballistic Gun Light Assault Rifle Ballistic Cannon Battle Cannon Launcher Rocket Launcher Build | -11 -10 -10 -10 ------- Run | Yrd Mat Min Sub Slots Evolved . | . . . . Power . | . . . . Propulsion . | . . . . Utility . | . . . . Weapon . | . . . . Parts Attached 29 | . 2 5 22 Power 5 | . . . 5 Engine 5 | . . . 5 Core . | . . . . Reactor . | . . . . Propulsion 6 | . . . 6 Treads 2 | . . . 2 Leg 1 | . . . 1 Wheel 3 | . . . 3 Hover . | . . . . Flight . | . . . . Utility 9 | . 2 3 4 Device 4 | . 1 2 1 Storage 2 | . 1 1 . Processor 1 | . . . 1 Hackware . | . . . . Protection 2 | . . . 2 Artifact . | . . . . Weapon 9 | . . 2 7 Energy Gun 3 | . . . 3 Energy Cannon . | . . . . Ballistic Gun 4 | . . 1 3 Ballistic Cannon 1 | . . . 1 Launcher 1 | . . 1 . Special Weapon . | . . . . Impact Weapon . | . . . . Slashing Weapon . | . . . . Piercing Weapon . | . . . . Special Melee Weapon . | . . . . Unidentified Prototypes 3 | . . 2 1 Parts Lost 4 | . . . 4 Power . | . . . . Propulsion 2 | . . . 2 Utility 1 | . . . 1 Weapon 1 | . . . 1 Highest Loss Streak 2 | . . . 2 To Critical Strikes . | . . . . Average Slot Usage (%) 93 | . 95 100 90 Engine 14 | . 14 14 14 Treads 10 | . . . 15 Leg 14 | . 28 28 7 Wheel 2 | . . . 4 Device 7 | . 1 14 4 Storage 8 | . 21 14 4 Processor 1 | . . . 2 Protection 5 | . . . 7 Energy Gun 6 | . . . 9 Ballistic Gun 15 | . 28 27 8 Ballistic Cannon 5 | . . . 8 Peak Build Rating 35 | . 8 17 35 Average Rating 15 | . 7 14 17 On Entrance 9 | 6 6 8 16 Naked Turns . | . . . . Heaviest Build 36 | 13 33 35 36 Greatest Support 50 | 20 20 20 50 Greatest Overweight (x) 1 | . 1 1 1 Average Overweight (x) . | . . 1 . Largest Inventory Capacity 15 | . 15 15 15 Average Capacity 10 | . 13 15 8 Most Carried 15 | . 8 14 15 Average Carried 8 | . 7 10 8 Final Capacity 15 | 8 15 15 5 Final Carried 14 | 6 8 14 5 Class Distribution -------------------- 70% | Mutant 11% | Tank 10% | Subdweller-Mutant 7% | Subdweller-Tank Dominant Class ---------------- Mutant | -10/Materials Mutant | -10/Mines Mutant | -10/Subcaves Resources | -11 -10 -10 -10 ----------- Run | Yrd Mat Min Sub Matter Collected 1337 | 200 30 172 935 Remotely . | . . . . Salvage Created 949 | . 95 276 578 Parts 46 | . 4 8 34 Haulers Intercepted . | . . . . Recyclers Shooed 1 | . . 1 . Parts Field Recycled . | . . . . Retrieved Matter . | . . . . Parts Self-Destructed 26 | . . . 26 Prevented . | . . . . Kills | -11 -10 -10 -10 ------- Run | Yrd Mat Min Sub Combat Hostiles Destroyed 21 | . 2 4 15 Guns 13 | . 2 2 9 Cannons 6 | . . . 6 AOE 2 | . . 2 . Classes Destroyed 4 | . 1 . 3 Turret 1 | . . . 1 Grunt 6 | . 2 4 . Sentry 1 | . . . 1 Subdweller 14 | . . . 14 Best Kill Streak 3 | . 2 2 3 Combat Bots Only 3 | . 2 2 3 Max Kills in Single Turn 1 | . 1 1 1 Gunslinging . | . . . . Exploded 1 | . . 1 . Melee . | . . . . Uniques/NPCs Destroyed 1 | . . 1 . YI-UF0 (-10/Mines) Combat | -11 -10 -10 -10 -------- Run | Yrd Mat Min Sub Hostile Shots Fired 106 | . 5 16 85 Missed 26 | . 2 2 22 Damage Taken 1527 | . 45 220 1262 Core 264 | . 11 37 216 Absorbed by Shields . | . . . . Core Remaining (%) 100 | 100 . . . Volleys Fired 112 | . 8 34 70 Largest 3 | . 2 2 3 Hottest 119 | . 40 40 119 Shots Fired 213 | . 16 60 137 Gun 171 | . 16 56 99 Cannon 38 | . . . 38 Launcher 4 | . . 4 . Special . | . . . . Kinetic 166 | . 16 56 94 Thermal 43 | . . . 43 Explosive 4 | . . 4 . Electromagnetic . | . . . . Robot Hit Streak 14 | . 5 7 14 Robot Miss Streak 5 | . 4 5 3 Penetration Max . | . . . . Secondary Targets . | . . . . Shots Hit Robots 136 | . 8 38 90 Core Hits 55 | . 6 20 29 Critical Kills 2 | . . . 2 Critical Parts Destroyed . | . . . . Critical Strikes 3 | . . . 3 Destroy 2 | . . . 2 Blast 1 | . . . 1 Melee Attacks . | . . . . Impact . | . . . . Slashing . | . . . . Piercing . | . . . . Sneak Attacks . | . . . . Combat Hostiles . | . . . . Follow-up Attacks . | . . . . Damage Inflicted 2285 | . 87 557 1641 Guns 1683 | . 87 435 1161 Cannons 480 | . . . 480 Explosions 122 | . . 122 . Melee . | . . . . Ramming . | . . . . Kinetic 1555 | . 87 435 1033 Thermal 608 | . . . 608 Explosive 122 | . . 122 . Electromagnetic . | . . . . Impact . | . . . . Slashing . | . . . . Piercing . | . . . . Highest Corruption . | . . . . Average Corruption . | . . . . Corruption Purged . | . . . . Corruption Blocked . | . . . . Overload Shots . | . . . . Overflow Damage . | . . . . Projectiles . | . . . . Explosions . | . . . . Melee . | . . . . Knockbacks 8 | . . . 8 Impact . | . . . . Kinetic 8 | . . . 8 Secondary . | . . . . Self-Inflicted Damage 48 | . . 48 . Shots 2 | . . 2 . Rammed . | . . . . Targets Rammed . | . . . . Kicked . | . . . . Crushed . | . . . . Highest Temperature 72 | . 9 16 72 Average Temperature 19 | . 7 8 25 Received Heat Transfer 447 | . 24 99 324 Siege Activations . | . . . . Robots Corrupted . | . . . . Combat Hostiles . | . . . . Parts Fried . | . . . . Impact Corruptions . | . . . . Robots Melted . | . . . . Combat Hostiles . | . . . . Parts Melted . | . . . . Heat Transferred 725 | . . . 725 Parts Sabotaged . | . . . . Parts Stolen . | . . . . Parts Stripped . | . . . . Power Chain Reactions . | . . . . Alert | -11 -10 -10 -10 ------- Run | Yrd Mat Min Sub Peak Influence 125 | . 85 125 . Initial 33 | . . 33 . Average 49 | . 32 53 . Maximum Alert Level . | . . . . Low Security (%) 100 | . 100 100 . Level 1 . | . . . . Level 2 . | . . . . Level 3 . | . . . . Level 4 . | . . . . Level 5 . | . . . . High Security . | . . . . Max Security . | . . . . Squads Dispatched 1 | . . 1 . Investigation . | . . . . Extermination . | . . . . Reinforcement . | . . . . Assault 1 | . . 1 . Garrison . | . . . . Intercept . | . . . . Searches Triggered . | . . . . Construction Impeded . | . . . . Haulers Reinforced . | . . . . Active Scanning Responses . | . . . . Cargo Convoy Interrupts . | . . . . Stealth | -11 -10 -10 -10 --------- Run | Yrd Mat Min Sub Distress Signals . | . . . . Communications Jammed . | . . . . Distress Signals . | . . . . Times Spotted 32 | . 4 7 21 Peak Tracking Total 4 | . 1 4 3 Tactical Retreats 2 | . . . 2 Traps | -11 -10 -10 -10 ------- Run | Yrd Mat Min Sub Traps Triggered . | . . . . Indirectly . | . . . . Trap Hack Attempts . | . . . . Triggered . | . . . . Disarmed . | . . . . Reprogrammed . | . . . . Reused . | . . . . Traps Extracted . | . . . . Installed . | . . . . Triggered . | . . . . Machines | -11 -10 -10 -10 ---------- Run | Yrd Mat Min Sub Machines Disabled . | . . . . Max in Single Turn . | . . . . Machines Repaired . | . . . . Machines Dismantled . | . . . . Machines Sabotaged . | . . . . Overloaded Fab Kills . | . . . . Hacking | -11 -10 -10 -10 --------- Run | Yrd Mat Min Sub Machines Accessed 2 | . 1 1 . Terminals 1 | . 1 . . Fabricators . | . . . . Repair Stations . | . . . . Recycling Units . | . . . . Scanalyzers . | . . . . Garrison Access . | . . . . Total Hacks 4 | . 3 1 . Successful 3 | . 2 1 . Failed 1 | . 1 . . Catastrophic . | . . . . Database Lockouts . | . . . . Manual . | . . . . Terminals 3 | . 3 . . Fabricators . | . . . . Repair Stations . | . . . . Recycling Units . | . . . . Scanalyzers . | . . . . Garrison Access . | . . . . Terminal Hacks 3 | . 2 1 . Prototype ID Bank 1 | . 1 . . Open Door 1 | . . 1 . Alert Level 1 | . 1 . . Fabricator Hacks . | . . . . Repair Station Hacks . | . . . . Recycling Unit Hacks . | . . . . Scanalyzer . | . . . . Garrison Access Hacks . | . . . . Unauthorized Hacks . | . . . . Terminals . | . . . . Fabricators . | . . . . Repair Stations . | . . . . Recycling Units . | . . . . Scanalyzers . | . . . . Garrison Access . | . . . . Data Cores Recovered . | . . . . Used . | . . . . Hacking Detections . | . . . . Full Trace Events . | . . . . Feedback Events . | . . . . Feedback Blocked . | . . . . Robot Schematics Acquired . | . . . . Robots Built . | . . . . Authchips . | . . . . Time . | . . . . Total Robot Build Rating . | . . . . Part Schematics Acquired . | . . . . Parts Built . | . . . . Authchips . | . . . . Time . | . . . . Total Part Build Rating . | . . . . Parts Repaired . | . . . . Time . | . . . . Parts Recycled . | . . . . Recycled Matter . | . . . . Retrieved Matter . | . . . . Retrieved Components . | . . . . Parts Scanalyzed . | . . . . Part Schematics Acquired . | . . . . Parts Damaged . | . . . . Bothacking | -11 -10 -10 -10 ------------ Run | Yrd Mat Min Sub Used RIF Installer . | . . . . Robots Hacked . | . . . . Non-combat . | . . . . Combat . | . . . . Robot Hacks Applied . | . . . . Relay Couplers Released . | . . . . Fabnet Peak Effective % . | . . . . Robots Rewired . | . . . . Allies Hacked . | . . . . Hacks Repelled . | . . . . Allies | -11 -10 -10 -10 -------- Run | Yrd Mat Min Sub Total Allies 2 | . . 2 . Largest Group 2 | . . 2 1 Highest-Rated Group 62 | . . 62 31 Highest-Rated Ally 31 | . . 31 31 Total Orders 7 | . . 6 1 FOLLOW 1 | . . 1 . RETURN 6 | . . 5 1 Ally Attacks 24 | . . 8 16 Total Damage 249 | . . 85 164 Kills 2 | . . 2 . Allies Corrupted . | . . . . Allies Melted . | . . . . Intel | -11 -10 -10 -10 ------- Run | Yrd Mat Min Sub Robot Analysis Total . | . . . . Derelict Logs Recovered 4 | . . 2 2 Drone Launches 9 | . . 6 3 Drone Recoveries 9 | . . 6 3 Exploration | -11 -10 -10 -10 ------------- Run | Yrd Mat Min Sub Turns Passed 4455 | . 301 1271 2883 Spaces Moved 2203 | 1 161 470 1571 Core . | . . . . Treads 976 | . . . 976 Legs 955 | 1 161 470 323 Wheels 272 | . . . 272 Hover . | . . . . Flight . | . . . . Fastest Speed 100 | 120 120 190 100 Average Speed 163 | 120 161 190 156 Slowest Speed 240 | 120 190 190 240 Overloaded Moves . | . . . . Propulsion Burnouts . | . . . . Robots Hopped . | . . . . Cave-ins Triggered . | . . . . Exploration Rate (%) 50 | 2 30 89 80 Regions Visited 3 Branch Regions 2 Pre-discovered Areas 2 | . . 1 1 Known Exits Taken . | . . . . Unknown Exits Taken 3 | 1 1 1 . Scrap Searched 2 | . . 1 1 Spaces Dug . | . . . . Terrain Destroyed 55 | . . 53 2 Melee . | . . . . Projectile 2 | . . . 2 AOE 53 | . . 53 . Terrain Rammed . | . . . . Walls Destroyed . | . . . . Machines Disabled . | . . . . Actions | -11 -10 -10 -10 --------- Run | Yrd Mat Min Sub Total 2859 | . 187 792 1880 Wait 457 | . 14 275 168 Move 2200 | . 160 469 1571 Hop . | . . . . Pick Up 26 | . 2 7 17 Fast Attach 17 | . 2 1 14 Attach 3 | . . . 3 Detach . | . . . . Swap 9 | . . 4 5 Drop 29 | . 1 2 26 Fire 112 | . 8 34 70 Melee . | . . . . Ram . | . . . . Kick . | . . . . Crush . | . . . . Escape Stasis . | . . . . Rewire . | . . . . Trap . | . . . . Miscellaneous 6 | . . . 6 Route ------- -11/Scrapyard -10/Materials -10/Mines (discovered 3 exits: [*Mat x2] / [*Sub]) -10/Subcaves (discovered 3 exits: [*Mat x2] / [*Rec]) History --------- Turn | Location | Event 1 | -11/Scrapyard | Discovered new exit (range 0) 1 | -11/Scrapyard | Entered Materials 277 | -10/Materials | Discovered new exit (range 14) 302 | -10/Materials | Entered Mines 308 | -10/Mines | Build established: Mutant 349 | -10/Mines | Received a Rocket Launcher from a helpful Derelict 436 | -10/Mines | Discovered new exit (range 7) 476 | -10/Mines | Found the Drone Emporium 491 | -10/Mines | Found Prototype Device 491 | -10/Mines | Identified Thief Drone Bay 681 | -10/Mines | YI-UF0 nonchalantly dropped a Grenade Launcher on the ground 751 | -10/Mines | Murdered YI-UF0 760 | -10/Mines | Found Prototype Storage 773 | -10/Mines | Identified YI-UF0's Bottomless Matter Pit 837 | -10/Mines | Learned location of Storage (-9) 981 | -10/Mines | Learned Materials garrison access intel 1139 | -10/Mines | Discovered new exit (range 5) 1188 | -10/Mines | Met a Derelict testing a Signal Generator 1200 | -10/Mines | Found Signal Generator 1234 | -10/Mines | Received a Mining Laser from a helpful Derelict 1291 | -10/Mines | A weapon hastily lodged in a ceiling crevice suddenly fell to the ground 1563 | -10/Mines | Discovered new exit (range 5) 1573 | -10/Mines | Entered Subcaves 1573 | -10/Subcaves | Accompanied by 1 ally 1687 | -10/Subcaves | A swath of the cavern ceiling suddenly collapsed 1800 | -10/Subcaves | Shifting Twisted Machinery released Battle Rifle 1815 | -10/Subcaves | Shifting Twisted Machinery released Scrap Shield 1826 | -10/Subcaves | Discovered new exit (range 13) 1888 | -10/Subcaves | Disturbed a concealed Subdweller 1995 | -10/Subcaves | A swath of the cavern ceiling suddenly collapsed 2494 | -10/Subcaves | Core integrity fell below 50% 2818 | -10/Subcaves | Build established: Subdweller-Mutant 2860 | -10/Subcaves | Shifting Twisted Machinery released Sub. Beam Cannon 3040 | -10/Subcaves | Shifting Twisted Machinery released Scrap Shield 3119 | -10/Subcaves | Shifting Twisted Machinery released Barrage Gun 3301 | -10/Subcaves | Build established: Mutant 3411 | -10/Subcaves | Discovered new exit (range 7) 3526 | -10/Subcaves | Learned Materials security intel 3543 | -10/Subcaves | A Subdweller sparked back to life 3543 | -10/Subcaves | A Subdweller sparked back to life 3543 | -10/Subcaves | A Subdweller sparked back to life 3550 | -10/Subcaves | Core integrity fell below 20% 3632 | -10/Subcaves | Found Prototype Processor 3632 | -10/Subcaves | Identified Rainbow Chip 3634 | -10/Subcaves | Attached Rainbow Chip, gained temporary slots: Power, Propulsion, Utility, Weapon 3933 | -10/Subcaves | Build established: Tank 3940 | -10/Subcaves | Discovered new exit (range 11) 4392 | -10/Subcaves | Learned location of Zion (-6) 4444 | -10/Subcaves | Build established: Subdweller-Tank 4456 | -10/Subcaves | Destroyed by P2-D72(R) with Subdweller Beam Cannon Last Messages --------------- 04328_ Acquired 14 matter. 04348_ Destroyed Autobeam. 04348_ Autobeam Turret destroyed. 04364_ Acquired 3 matter. 04373_ Acquired 27 matter. 04380_ Subatomizers dissect the Mak. Leg. 04383_ Acquired 11 matter. 04390_ Acquired 18 matter. 04392_ Subatomizers dissect the Mak. Leg. 04392_ Acquired derelict log, extracted data. World map updated: -6/Zion. 04399_ Sub. Monowheel shoots sparks and powers down. 04400_ Dropped Broken Sub. Monowheel. 04406_ Acquired Mak. Leg. 04415_ Sub. Power Source shoots sparks and powers down. 04422_ Dropped Broken Sub. Power Source. 04423_ Acquired Mak. Power Source. 04424_ Acquired 21 matter. Map ----- +----------------------------------------------------+ | ??????????????????## #??????????????????# ### # | | ??????????????????# ###???????????????## | | ??????????????????# ##?????????????## | | ??????????????????# #?????????????# ##### | | ??????????????????# #?????????????## ###???# | | ??????????????????## #?????????##???###?????## | | ??????????????????## ##?????????# ??##????????# | | ??????????????????# #????###??? ## #????????? | | ??????????????????# ##????# ###?? #????????? | | ??????????????????## ##?????# ##?# #????????? | | ???????????????????########??# ### #????????? | | ?????????????????????## #### ## #######???? | | ?????????????????????# ## ### ## #???? | | ??????????????????????# ## ##??? | | ###???????????????###?# #??? | | ###???????????### ## #???? | | """##?????????## " ##= #####?? | | " ??????????# " = ### # # ### | | #?????????"" "%%% * ###"""# & ! ## | | ##???????? " ! " ## ! #?# "" "=" < | | #???????? ## =%### ### #####?# "" " | | #??????????# ????##?# ##?????# """ " | | ##??????????????????## ###??????#""" "#" | | ###" #?????????????# #????????# """ #" | | ""]"" ?????????????## ##????????## """" | | " "" ????????????## @#### ### "# | | ### "" ????????????# RR #?# ####"% | | ##??##" ????????????# ##### ## #?# ##???#" | | ##?????? ???????????? ?????????????#""?????#" | | ???????????????????? #?????????????#"??????#"""" | | ???????????????????# # ??????????????????????####" | | ???????????????????### ?????????????????????????## | | ?????????????????????# ??????????????????????????# | | ?????????????????????#???????????????????????????# | | ?????????????????????????????????????????????????? | | ?????????????????????????????????????????????????? | | ?????????????????????????????????????????????????? | | ?????????????????????????????????????????????????? | | ?????????????????????????????????????????????????? | | ?????????????????????????????????????????????????? | | ?????????????????????????????????????????????????? | | ?????????????????????????????????????????????????? | | ?????????????????????????????????????????????????? | | ?????????????????????????????????????????????????? | | ?????????????????????????????????????????????????? | | ?????????????????????????????????????????????????? | | ?????????????????????????????????????????????????? | | ?????????????????????????????????????????????????? | | ?????????????????????????????????????????????????? | | ?????????????????????????????????????????????????? | +----------------------------------------------------+ Best States ------------- Heat Dissipation 25 Energy Generation 20 Energy Capacity 400 Matter Stores 300 Matter Capacity 300 Sight Range 16 Terrain Scan Density 10 Armor Coverage 800 Evasion (%) 55 Recoil Reduction 2 Item Schematics ----------------- None Robot Schematics ------------------ None Fabricated ------------ Nothing Alien Tech Used ----------------- None Achievements -------------- None Challenges ------------ None Game ------ Seed ActuatorTransmissionBiocell Manual? 0 Play Time 00:30:16 Cumulative 77.1 hours Start 2024.08.07 @ 00:34:13 End 2024.08.07 @ 14:24:55 Sessions 2 Manual Loads 0 Difficulty Rogue Special Mode None Game No. 93 Rogue 93 Adventurer 0 Explorer 0 Win Type - Total 0 Types 0/0/0/0/0/0/0/0/0 Lore% 26 Gallery% 52 Achievement% 51 Wizard Run 0 Options --------- Layout 1 ASCII 0 Keyboard 0 Movement Mouse Keybinds 0 Fullscreen 1 Font 32/SmallcapsGlow Map View 50x35 Zoom Use 0% Tactical HUD 1 Map Filters NONE Filters NONE Steam 1 RUN: f26a5584-4bad-447a-bff1-2c722ec38d12